bitfinex-derivatives/quotes_ETHF0:USTF0_20241022
["timestamp","ask_amount","ask_price","bid_price","bid_amount"]
[1729600833521,3.2078,2624.9,2624.3,3.2078]
[1729600833724,3.2078,2624.9,2624.7,0.3812]
[1729600833924,3.2078,2624.9,2624.4,3.8104]
[1729600834224,3.2078,2624.9,2624.7,0.38119]
[1729600834638,3.2078,2624.9,2624.7,3.8096]
[1729600835119,3.2078,2624.9,2624.8,3.8096]
[1729600835323,3.2078,2624.9,2624.4,3.8104]
[1729600835523,3.2078,2624.9,2624.6,0.38121]
[1729600836225,6.1778,2624.9,2624.6,0.38121]
[1729600836927,6.1778,2624.9,2624.3,0.38126]
[1729600837135,6.1778,2624.9,2624.6,0.3812]
[1729600837326,6.1778,2624.9,2624.6,0.38121]
[1729600838229,6.1778,2624.9,2624.2,0.59094972]
[1729600838230,3.2078,2624.9,2624.8,0.38119]
[1729600838428,0.95254,2626.0,2624.3,7.0182]
[1729600838429,3.2078,2625.2,2624.3,7.0182]
[1729600838631,3.58894,2625.2,2624.3,3.2078]
[1729600838932,2.97,2625.1,2624.8,0.38118]
[1729600839323,2.97,2625.1,2624.9,3.8096]
[1729600839827,2.97,2625.1,2625.0,3.8096]
[1729600840024,2.97,2625.1,2624.9,3.8096]
[1729600840225,2.97,2625.1,2625.0,3.8096]
[1729600840420,2.97,2625.1,2624.9,3.8096]
[1729600840836,2.97,2625.1,2625.0,3.8096]
[1729600841031,3.2078,2625.6,2625.1,0.38114]
[1729600841245,3.2078,2625.2,2625.1,0.38114]
[1729600841535,6.1778,2625.2,2624.9,0.38117]
[1729600841742,2.97,2625.0,2624.9,0.38117]
[1729600841925,2.97,2625.0,2624.8,0.38118]
[1729600842126,2.97,2625.0,2624.4,40.8]
[1729600842127,2.97,2625.0,2624.9,0.38117]
[1729600842522,2.97,2625.0,2624.9,3.8096]
[1729600842734,2.97,2625.0,2624.9,4.19077]
[1729600842935,3.2078,2625.2,2625.0,0.38115]
[1729600843134,3.2078,2625.2,2624.9,3.8096]
[1729600843135,2.97,2625.1,2624.9,4.19076]
[1729600843331,2.97,2625.1,2625.0,0.38116]
[1729600843635,2.97,2625.1,2625.0,4.19076]
[1729600844438,3.58893,2625.2,2625.0,4.19076]
[1729600844635,2.97,2625.1,2625.0,4.19076]
[1729600844835,2.97,2625.1,2625.0,0.38116]
[1729600845039,3.35114,2625.1,2625.0,4.19076]
[1729600845336,2.97,2625.1,2625.0,4.19076]
[1729600845536,3.35114,2625.1,2624.5,0.95306]
[1729600845836,2.97,2625.1,2624.9,0.38116]
[1729600846035,2.97,2625.1,2625.0,0.38116]
[1729600846335,3.58893,2625.2,2624.6,3.92305]
[1729600846530,3.58893,2625.2,2625.1,0.38114]
[1729600846836,3.2078,2625.2,2625.1,0.38114]
[1729600847135,3.58893,2625.2,2625.1,0.38114]
[1729600847543,3.2078,2625.2,2625.1,0.38114]
[1729600847732,3.58893,2625.2,2625.1,0.38114]
[1729600847927,3.2078,2625.2,2625.1,0.38114]
[1729600848339,2.97,2625.5,2625.1,0.38114]
[1729600848340,3.2078,2625.5,2625.1,3.8096]
[1729600848531,0.3811,2625.4,2624.8,0.95296]
[1729600848849,0.3811,2625.4,2625.3,0.38111]
[1729600849939,0.38111,2625.4,2625.3,0.38111]
[1729600850430,0.3811,2625.4,2624.8,0.95296]
[1729600850636,0.3811,2625.4,2625.3,0.3811]
[1729600850935,6.1778,2625.5,2624.6,3.2078]
[1729600851135,0.38111,2625.4,2625.3,0.38111]
[1729600851839,0.38111,2625.4,2624.5,2.97]
[1729600851840,6.1778,2625.5,2624.9,0.95293]
[1729600852142,6.5589,2625.5,2625.4,0.3811]
[1729600854241,6.5589,2625.5,2624.9,0.95293]
[1729600854242,0.38111,2625.4,2625.3,0.3811]
[1729600855946,6.1778,2625.5,2624.9,0.95293]
[1729600856145,3.2078,2625.0,2624.9,0.38115]
[1729600856333,2.25413867,2625.0,2624.9,0.38115]
[1729600856537,2.63529867,2625.0,2624.9,0.38115]
[1729600856948,2.63529867,2625.0,2623.7,2.44634115]
[1729600856949,0.95305,2624.6,2623.7,2.44634115]
[1729600857134,2.97,2623.8,2623.7,0.38135]
[1729600857337,1.63438708,2623.8,2623.7,0.38135]
[1729600857740,2.97,2624.0,2623.5,0.95342]
[1729600858050,6.1778,2623.6,2623.1,2.44657115]
[1729600858251,6.1778,2623.6,2623.2,1.4640489]
[1729600858449,0.95321,2624.2,2623.2,2.44653115]
[1729600858450,3.35134,2623.8,2623.2,2.44653115]
[1729600858747,0.38135,2623.7,2623.6,0.38136]
[1729600858946,2.97,2623.8,2623.7,0.38135]
[1729600859141,3.2078,2623.9,2623.2,1.49300115]
[1729600859450,3.2078,2623.9,2623.2,4.46300115]
[1729600859451,6.1778,2623.9,2623.2,4.46300115]
[1729600859741,3.2078,2623.9,2623.3,0.95352]
[1729600859943,6.1778,2623.9,2623.4,0.95346]
[1729600860142,6.1778,2623.9,2623.8,0.38133]
[1729600860344,3.2078,2623.9,2623.8,0.38133]
[1729600860751,3.2078,2624.2,2624.1,0.38129]
[1729600862947,3.2078,2624.2,2624.1,4.19169]
[1729600863249,3.2078,2624.6,2624.5,0.38123]
[1729600863649,3.2078,2624.9,2624.8,0.38119]
[1729600864452,0.38114,2625.2,2625.1,0.38114]
[1729600864453,3.2078,2625.2,2625.1,0.38114]
[1729600865857,3.2078,2625.7,2625.1,3.8096]
[1729600866061,3.2078,2625.7,2625.6,0.38107]
[1729600868662,7.0166,2625.7,2625.6,0.38107]
[1729600870063,3.2078,2625.7,2625.6,0.38107]
[1729600871264,3.2078,2625.7,2625.6,4.18987]
[1729600873174,3.2078,2625.7,2625.6,0.38107]
[1729600874266,3.66,2626.3,2625.9,0.38103]
[1729600874267,3.2078,2626.0,2625.9,0.38103]
[1729600876163,3.58881,2626.0,2625.9,0.38103]
[1729600876666,10.6758,2626.0,2625.5,0.95269]
[1729600876874,3.2078,2625.7,2625.6,0.38107]
[1729600877675,7.0166,2625.7,2625.6,0.38107]
[1729600878174,3.2078,2625.7,2625.6,0.38107]
[1729600880268,3.2078,2626.0,2625.9,0.38103]
[1729600880674,3.2078,2626.0,2625.9,4.18903]
[1729600881174,3.2078,2626.7,2626.6,0.38092]
[1729600881575,7.015,2626.7,2626.6,0.38092]
[1729600881770,7.39591,2626.7,2626.6,0.38092]
[1729600882068,7.015,2626.7,2626.6,0.38092]
[1729600882269,0.38093,2626.6,2626.5,0.38093]
[1729600882472,7.84813,2626.6,2626.5,0.38093]
[1729600882668,7.4672,2626.6,2626.5,0.38093]
[1729600883265,4.4678,2626.7,2626.6,0.38092]
[1729600883266,3.2078,2626.7,2626.6,0.38092]
[1729600883471,3.2078,2626.7,2626.2,0.95246]
[1729600883768,0.38092,2626.7,2626.6,0.38092]
[1729600883972,3.2078,2626.5,2626.4,0.38095]
[1729600886466,3.58874,2626.5,2626.4,0.38095]
[1729600886667,3.2078,2626.5,2626.4,0.38095]
[1729600887971,3.58874,2626.5,2626.4,0.38095]
[1729600888371,6.55874,2626.5,2626.4,0.38095]
[1729600889073,6.1778,2626.5,2626.4,0.38095]
[1729600889380,6.55874,2626.5,2626.4,0.38095]
[1729600890477,3.2078,2626.5,2626.4,0.38095]
[1729600890677,3.2078,2627.1,2627.0,0.38087]
[1729600890871,3.2078,2627.4,2626.7,0.95228]
[1729600891075,4.264,2627.5,2626.7,0.95228]
[1729600891076,0.38085,2627.2,2626.7,0.95228]
[1729600891478,3.58866,2627.1,2627.0,0.38087]
[1729600891677,3.2078,2627.1,2626.4,3.2078]
[1729600891981,3.2078,2626.9,2626.8,0.38088]
[1729600894481,7.015,2626.9,2626.8,0.38088]
[1729600895082,3.2078,2626.9,2626.8,0.38088]
[1729600895381,7.015,2626.9,2625.8,3.2078]
[1729600895574,2.97,2626.8,2626.7,0.3809]
[1729600895776,0.38091,2626.7,2626.6,0.38091]
[1729600896882,6.55871,2626.8,2626.7,0.38091]
[1729600897284,10.36591,2626.8,2626.7,0.38091]
[1729600897590,9.985,2626.8,2626.1,0.95248]
[1729600897782,2.97,2626.4,2626.3,0.38097]
[1729600897981,3.2078,2626.5,2626.1,0.95248]
[1729600898288,3.2078,2626.5,2626.4,0.38095]
[1729600903581,3.58874,2626.5,2626.4,0.38095]
[1729600904581,3.2078,2626.5,2625.8,3.2078]
[1729600904790,0.38097,2626.4,2626.3,0.38096]
[1729600905382,0.38099,2626.2,2626.1,0.38098]
[1729600905583,3.58879,2626.2,2626.1,0.38098]
[1729600906422,3.2078,2626.2,2626.1,0.38098]
[1729600906819,3.58878,2626.2,2626.1,0.38098]
[1729600907017,0.38102,2626.1,2626.0,0.381]
[1729600907411,4.18902,2626.1,2626.0,0.381]
[1729600907715,3.808,2626.1,2626.0,0.381]
[1729600907915,3.58879,2626.2,2626.1,0.381]
[1729600908201,3.2078,2626.2,2626.1,0.381]
[1729600925602,3.58878,2626.3,2626.2,0.38098]
[1729600926506,0.38098,2626.3,2626.2,0.38098]
[1729600926803,3.2078,2626.3,2626.2,0.38098]
[1729600933503,9.9858,2626.3,2625.4,3.2078]
[1729600933805,3.58886,2625.7,2625.6,0.38105]
[1729600934005,0.38111,2625.5,2625.4,0.38108]
[1729600934210,4.16045,2625.7,2625.3,0.3811]
[1729600934211,0.38112,2625.4,2625.3,0.3811]
[1729600934416,3.58892,2625.4,2625.3,0.3811]
[1729600934911,3.58891,2625.4,2625.3,0.38111]
[1729600935903,3.2078,2625.4,2625.3,0.38111]
[1729600936107,3.5889,2625.4,2625.3,0.38111]
[1729600937608,3.2078,2625.4,2624.9,2.97]
[1729600937809,3.2078,2625.4,2624.9,0.95293]
[1729600938014,0.38113,2625.3,2625.2,0.38112]
[1729600938209,3.2078,2625.4,2624.7,2.97]
[1729600938514,0.38113,2625.2,2624.9,0.38117]
[1729600938703,0.38112,2625.3,2624.9,0.38117]
[1729600938905,3.2078,2625.1,2624.7,2.97]
[1729600939106,6.1778,2625.1,2624.3,2.97]
[1729600939418,0.38119,2624.8,2624.5,0.38122]
[1729600939711,0.38119,2624.8,2624.2,0.95318]
[1729600939712,6.1778,2625.1,2624.2,3.92318]
[1729600940415,2.97,2624.9,2624.3,0.38124]
[1729600940619,0.38121,2624.7,2624.1,3.2078]
[1729600940816,3.2078,2624.8,2624.3,0.38125]
[1729600940817,0.38122,2624.6,2624.3,0.38125]
[1729600941015,3.2078,2624.8,2624.1,3.2078]
[1729600941216,0.38126,2624.4,2623.9,40.8]
[1729600941413,0.38126,2624.4,2623.8,2.97]
[1729600941414,3.2078,2624.5,2624.3,0.38125]
[1729600941609,6.1778,2624.5,2623.7,4.16117]
[1729600941814,6.1778,2624.5,2624.1,0.38129]
[1729600941815,0.38125,2624.4,2624.1,0.38129]
[1729600942112,6.1778,2624.5,2623.8,40.8]
[1729600942315,0.38124,2624.4,2624.1,0.38128]
[1729600942919,6.1778,2624.5,2623.8,43.77]
[1729600943113,6.1778,2624.5,2623.8,40.8]
[1729600943417,0.38128,2624.2,2623.9,0.38131]
[1729600943614,6.1778,2624.5,2624.0,0.3813]
[1729600943915,0.38126,2624.3,2623.8,40.8]
[1729600944121,0.38125,2624.4,2624.1,0.38128]
[1729600945327,0.38125,2624.4,2623.8,40.8]
[1729600945532,0.38124,2624.4,2624.2,0.38127]
[1729600946728,0.38124,2624.4,2623.8,40.8]
[1729600946930,0.38124,2624.4,2624.2,0.38127]
[1729600947527,0.38124,2624.4,2624.1,0.38128]
[1729600947829,0.38124,2624.4,2624.2,0.38127]
[1729600948028,0.38124,2624.4,2623.8,41.75333]
[1729600948231,0.38124,2624.4,2624.2,0.38127]
[1729600949231,0.38124,2624.4,2623.8,41.75333]
[1729600949434,0.38124,2624.4,2624.2,0.38127]
[1729600950337,3.58904,2624.4,2624.2,0.38127]
[1729600950927,3.58904,2624.4,2623.8,41.75333]
[1729600951135,3.2078,2624.4,2623.8,40.8]
[1729600951334,3.2078,2624.4,2623.8,41.75333]
[1729600951637,0.38126,2624.3,2624.1,0.38128]
[1729600951837,3.58905,2624.4,2623.9,0.38132]
[1729600952027,3.58905,2624.4,2624.1,0.38128]
[1729600952230,3.58905,2624.4,2623.8,41.75332]
[1729600952435,3.58905,2624.4,2624.2,0.38127]
[1729600952640,3.2078,2624.4,2623.9,2.97]
[1729600952842,3.2078,2624.4,2624.3,0.38126]
[1729600953340,0.38123,2624.6,2624.3,0.38126]
[1729600953543,2.97,2624.7,2624.3,0.38126]
[1729600953544,0.38123,2624.5,2624.3,0.38126]
[1729600953840,0.38122,2624.6,2624.4,0.38123]
[1729600955043,0.38123,2624.5,2624.3,0.38125]
[1729600955242,0.38123,2624.6,2624.3,0.38125]
[1729600955741,0.38123,2624.6,2624.4,0.38124]
[1729600955945,0.38122,2624.6,2624.4,0.38124]
[1729600956142,0.38123,2624.5,2624.3,0.38125]
[1729600956337,0.38123,2624.5,2624.4,0.38124]
[1729600956644,0.38123,2624.5,2624.3,0.38125]
[1729600956839,2.97,2624.7,2624.0,0.95326]
[1729600957038,0.38123,2624.6,2624.4,0.38124]
[1729600957237,0.38122,2624.6,2624.4,0.38124]
[1729600958946,3.58899,2624.8,2624.6,0.3812]
[1729600959148,3.589,2624.8,2624.6,0.3812]
[1729600959344,0.3812,2624.7,2624.6,0.3812]
[1729600960043,3.2078,2624.8,2624.6,0.3812]
[1729600960351,3.589,2624.8,2624.6,0.3812]
[1729600960946,3.2078,2624.8,2624.6,0.3812]
[1729600961147,3.589,2624.8,2624.6,0.3812]
[1729600961456,3.2078,2624.8,2624.3,0.95315]
[1729600961647,3.589,2624.8,2624.6,0.38121]
[1729600962049,3.589,2624.8,2624.4,0.38124]
[1729600962259,3.589,2624.8,2624.7,0.3812]
[1729600962551,3.2078,2624.8,2624.6,0.38121]
[1729600962853,0.3812,2624.7,2624.6,0.38121]
[1729600963255,3.2078,2624.8,2624.7,0.3812]
[1729600963950,3.2078,2624.8,2624.7,4.1908]
[1729600965342,3.2078,2624.8,2624.7,0.3812]
[1729600965546,6.1778,2624.8,2624.2,4.16097]
[1729600965753,6.1778,2624.8,2624.5,0.38122]
[1729600965953,6.1778,2624.8,2624.4,0.38124]
[1729600965954,0.38123,2624.5,2624.4,0.38124]
[1729600966153,7.13078,2624.8,2623.9,4.16109]
[1729600966154,2.97,2624.6,2623.9,4.16109]
[1729600966357,0.38044427,2624.3,2624.2,0.38126]
[1729600966559,3.35125,2624.4,2624.3,0.38126]
[1729600966854,3.35126,2624.4,2624.3,0.38126]
[1729600967055,0.38126,2624.3,2624.2,0.38126]
[1729600968556,3.35126,2624.4,2624.3,0.38126]
[1729600969062,0.38128,2624.2,2624.1,0.38127]
[1729600970364,0.3813,2624.1,2624.0,0.38129]
[1729600970951,3.2078,2624.3,2623.8,0.95333]
[1729600971257,0.38128,2624.2,2624.1,0.38127]
[1729600975251,3.2078,2624.3,2624.2,0.38127]
[1729600975859,0.38121,2624.7,2624.6,0.38122]
[1729600976058,3.58901,2624.7,2624.6,0.38122]
[1729600976256,0.38121,2624.7,2624.6,0.38122]
[1729600977561,3.3512,2624.8,2624.7,0.3812]
[1729600978965,0.38122,2624.7,2624.6,0.3812]
[1729600980658,3.2078,2624.7,2624.2,0.95316]
[1729600980973,3.58907,2624.4,2624.3,0.38125]
[1729600981365,3.58907,2624.4,2624.3,4.19165]
[1729600981566,3.58907,2624.4,2624.3,0.38125]
[1729600981762,3.58907,2624.4,2624.3,4.19165]
[1729600982163,0.38127,2624.4,2624.3,4.19165]
[1729600983358,3.58907,2624.4,2624.3,0.38125]
[1729600983564,3.58907,2624.4,2624.3,4.19165]
[1729600984268,3.58907,2624.4,2624.3,0.38125]
[1729600984770,0.38128,2624.3,2624.2,0.38126]
[1729600985568,3.2078,2624.5,2624.1,0.38127]
[1729600985569,0.38129,2624.2,2624.1,0.38127]
[1729600987574,0.3813,2624.1,2624.0,0.38129]
[1729600989472,0.38132,2624.0,2623.9,0.38131]
[1729600991976,0.3813,2624.1,2624.0,0.38129]
[1729600992973,0.38132,2624.0,2623.9,0.38131]
[1729600993481,0.38136,2623.7,2623.6,0.38134]
[1729600993678,3.35132,2624.0,2623.7,0.38135]
[1729600993679,6.55914,2623.8,2623.7,0.38135]
[1729600994275,3.2078,2623.8,2623.7,0.38135]
[1729600995081,3.58913,2623.8,2623.7,0.38135]
[1729600995680,6.55913,2623.8,2623.7,0.38135]
[1729600998884,0.38138,2623.6,2623.5,0.38135]
[1729601000179,3.35138,2623.6,2623.5,0.38135]
[1729601000370,0.3814,2623.5,2623.4,0.38137]
[1729601000776,0.38137,2623.5,2623.4,0.38137]
[1729601000979,3.35137,2623.6,2623.5,0.38137]
[1729601001381,3.35137,2623.6,2623.2,0.95354]
[1729601001382,0.38142,2623.3,2623.2,0.3814]
[1729601001682,3.35142,2623.3,2623.2,0.3814]
[1729601002572,0.38138,2623.5,2623.0,0.9536]
[1729601002781,3.35137,2623.6,2623.5,0.38137]
[1729601002978,2.97,2623.6,2623.1,0.95356]
[1729601003282,0.38139,2623.5,2623.4,0.38137]
[1729601004381,3.35137,2623.6,2623.5,0.38137]
[1729601004877,7.16337,2623.6,2623.5,0.38137]
[1729601005378,7.16337,2623.6,2623.2,0.95355]
[1729601005379,2.97,2623.6,2623.2,0.95355]
[1729601005583,0.38149,2622.7,2622.6,0.38149]
[1729601005883,2.97,2622.7,2622.1,3.2078]
[1729601006082,2.97,2622.7,2622.4,0.38152]
[1729601006083,0.38153,2622.5,2622.4,0.38152]
[1729601006386,5.1836,2622.5,2622.4,0.38152]
[1729601006580,5.56512,2622.5,2622.4,0.38152]
[1729601007181,4.19513,2622.5,2622.4,0.38153]
[1729601007485,4.79031,2622.6,2622.5,0.38152]
[1729601007678,8.60311,2622.6,2622.5,0.38152]
[1729601007878,7.40211,2622.6,2622.5,0.38152]
[1729601008282,10.38211,2622.6,2622.5,0.38152]
[1729601008479,10.0006,2622.6,2622.5,0.38152]
[1729601008675,10.38211,2622.6,2622.5,0.38152]
[1729601008982,10.0006,2622.6,2622.5,0.38152]
[1729601009183,10.38211,2622.6,2622.5,0.38152]
[1729601010479,10.0006,2622.6,2622.5,0.38152]
[1729601010674,10.38211,2622.6,2622.5,0.38152]
[1729601011483,0.38154,2622.5,2622.4,0.38153]
[1729601011991,6.1878,2622.6,2622.2,0.95391]
[1729601012281,3.2078,2622.6,2622.5,0.38152]
[1729601012487,6.56931,2622.6,2622.5,0.38152]
[1729601012683,3.2078,2622.6,2622.5,0.38152]
[1729601013083,3.58929,2622.7,2622.4,0.95383]
[1729601013279,3.93354,2623.3,2622.4,0.95383]
[1729601013280,6.1878,2623.0,2622.9,0.38146]
[1729601013485,3.2078,2623.0,2622.9,0.38146]
[1729601013685,3.2078,2623.3,2623.2,0.38142]
[1729601013883,3.2078,2623.3,2622.7,0.95373]
[1729601013884,3.2078,2623.3,2622.7,0.95372]
[1729601014083,2.98,2623.2,2623.1,0.38143]
[1729601014687,3.36142,2623.2,2623.1,0.38143]
[1729601014886,2.98,2623.2,2623.1,0.38143]
[1729601015085,6.792,2623.2,2623.1,0.38143]
[1729601015289,7.17342,2623.2,2623.1,0.38143]
[1729601016693,0.38145,2623.1,2623.0,0.38144]
[1729601016993,3.36143,2623.2,2623.1,0.38143]
[1729601017391,7.17343,2623.2,2623.1,0.38143]
[1729601017583,0.38145,2623.1,2623.0,0.38144]
[1729601017894,2.98,2623.2,2622.8,0.95369]
[1729601018285,2.98,2623.2,2623.1,0.38143]
[1729601018987,3.2078,2623.3,2623.2,0.38142]
[1729601019591,3.2078,2623.3,2623.2,4.19342]
[1729601019895,2.98,2623.8,2623.7,0.38135]
[1729601020096,3.36133,2623.8,2623.7,0.38135]
[1729601021592,0.38136,2623.7,2623.6,0.38135]
[1729601021787,2.98,2623.7,2623.6,0.38135]
[1729601023988,3.36133,2623.8,2623.4,0.95347]
[1729601024299,3.36133,2623.8,2623.7,0.38135]
[1729601024997,0.38128,2624.2,2624.1,0.38127]
[1729601025195,6.1878,2624.3,2624.2,0.38127]
[1729601025400,9.9982,2624.3,2624.2,0.38127]
[1729601025598,10.37946,2624.3,2624.2,0.38127]
[1729601025994,0.38129,2624.2,2624.1,0.38128]
[1729601026796,0.38131,2624.1,2624.0,0.38129]
[1729601027003,2.98,2624.1,2623.6,0.95341]
[1729601027196,3.36134,2623.8,2623.7,0.38132]
[1729601027500,2.98,2623.8,2623.7,0.38132]
[1729601028103,3.36133,2623.8,2623.7,0.38132]
[1729601033001,2.98,2623.8,2623.7,0.38132]
[1729601033201,3.36133,2623.8,2623.7,0.38132]
[1729601033402,0.38137,2623.7,2623.6,0.38135]
[1729601033609,0.38138,2623.6,2623.5,0.38136]
[1729601033900,0.38139,2623.5,2623.4,0.38137]
[1729601036104,0.38137,2623.6,2623.5,0.38136]
[1729601036605,3.2078,2623.7,2623.3,0.95351]
[1729601036799,0.95329,2624.0,2623.9,0.38132]
[1729601036800,3.2078,2624.0,2623.9,0.38132]
[1729601037897,0.38127,2624.2,2624.1,0.38127]
[1729601038298,0.3813,2624.1,2624.0,0.38129]
[1729601038505,0.38132,2624.0,2623.9,0.38131]
[1729601039302,0.38132,2624.0,2623.6,0.9534]
[1729601039303,3.58909,2624.1,2624.0,0.3813]
[1729601041305,0.38133,2623.9,2623.8,0.38131]
[1729601041704,2.98,2623.9,2623.1,2.98]
[1729601042011,0.38134,2623.8,2623.7,0.38133]
[1729601042215,2.98,2623.9,2623.1,6.1878]
[1729601042414,0.38138,2623.6,2623.5,0.38137]
[1729601042607,0.3814,2623.4,2623.3,0.38139]
[1729601044009,2.98,2623.7,2623.0,0.95362]
[1729601044315,0.38139,2623.5,2623.4,0.38139]
[1729601045207,0.38139,2623.5,2623.0,4.16142]
[1729601045409,2.98,2623.7,2623.0,4.16142]
[1729601045410,0.95341,2623.6,2623.0,3.2078]
[1729601045612,0.95341,2623.6,2622.9,2.98]
[1729601045613,0.38141,2623.3,2623.2,0.3814]
[1729601046209,0.3814,2623.4,2623.3,0.38139]
[1729601046712,0.38143,2623.3,2623.2,0.38141]
[1729601047108,0.38143,2623.3,2622.9,0.95366]
[1729601047109,0.3814,2623.4,2623.3,0.3814]
[1729601047316,0.38142,2623.3,2623.2,0.38141]
[1729601047710,6.1878,2623.5,2622.9,0.95366]
[1729601047914,0.3814,2623.4,2623.3,0.38139]
[1729601048215,3.2078,2623.5,2622.9,2.98]
[1729601048408,1.4076,2623.5,2623.4,0.38139]
[1729601048610,0.38131,2624.0,2623.6,0.95339]
[1729601048808,0.38131,2624.0,2623.9,0.38132]
[1729601049514,2.98,2624.1,2623.4,3.58919]
[1729601049709,2.98,2624.1,2623.7,0.38133]
[1729601049710,0.38134,2623.8,2623.7,0.38133]
[1729601050110,0.38134,2623.8,2623.7,4.19253]
[1729601051018,0.38134,2623.8,2623.7,0.38133]
[1729601051612,2.98,2623.9,2623.4,3.58919]
[1729601051613,6.1878,2623.9,2623.4,3.2078]
[1729601051914,2.98,2623.6,2623.0,4.1614]
[1729601052112,3.36137,2623.6,2623.5,0.38137]
[1729601052523,0.38139,2623.5,2623.4,0.38138]
[1729601052815,0.38135,2623.7,2623.6,0.38135]
[1729601053421,2.98,2623.8,2623.4,0.38137]
[1729601053422,0.38138,2623.5,2623.4,0.38137]
[1729601053622,0.38135,2623.7,2623.6,0.38135]
[1729601056011,2.98,2623.8,2623.2,0.95355]
[1729601056313,2.98,2623.8,2623.4,0.38138]
[1729601056314,0.38139,2623.5,2623.4,0.38138]
[1729601057119,0.3814,2623.4,2623.3,0.38139]
[1729601060113,2.98,2623.4,2622.9,0.95366]
[1729601060423,3.3614,2623.4,2623.3,0.3814]
[1729601061126,0.3814,2623.4,2623.3,0.3814]
[1729601061421,0.3814,2623.4,2622.9,0.95366]
[1729601061422,2.98,2623.4,2622.9,0.95366]
[1729601061622,0.38143,2623.3,2623.2,0.38141]
[1729601062321,0.38143,2623.3,2622.9,0.95366]
[1729601062322,0.38153,2622.6,2622.5,0.38151]
[1729601062526,2.98,2622.6,2622.5,0.38152]
[1729601062722,3.36151,2622.6,2622.5,0.38152]
[1729601062924,0.38153,2622.5,2622.4,0.38152]
[1729601063124,2.98,2622.6,2622.1,0.95395]
[1729601063319,0.38155,2622.4,2622.3,0.38153]
[1729601063629,0.38153,2622.5,2622.4,0.38152]
[1729601064219,2.98,2622.6,2622.1,0.95395]
[1729601064422,3.36151,2622.6,2622.5,0.38152]
[1729601064628,2.98,2622.6,2622.5,0.38152]
[1729601065529,3.2078,2622.8,2622.2,2.98]
[1729601065728,2.98,2622.7,2622.2,0.95392]
[1729601065929,2.98,2622.7,2622.6,0.38151]
[1729601066125,2.98,2622.7,2622.2,0.95392]
[1729601066325,2.98,2622.7,2622.6,0.38151]
[1729601067923,3.2078,2622.8,2622.6,0.38149]
[1729601068129,3.2078,2622.8,2622.7,0.38149]
[1729601068324,3.2078,2622.8,2622.4,0.38153]
[1729601068531,3.2078,2622.8,2622.1,3.2078]
[1729601068828,2.98,2622.7,2622.2,0.95392]
[1729601069025,2.98,2622.7,2622.6,0.3815]
[1729601072032,3.2078,2623.1,2622.6,6.7928]
[1729601072230,0.95331,2623.9,2623.4,0.38138]
[1729601072231,3.36137,2623.6,2623.4,0.38138]
[1729601072430,3.36137,2623.6,2623.2,0.38141]
[1729601072431,2.98,2623.6,2623.2,0.38141]
[1729601072626,0.38142,2623.3,2623.1,0.38142]
[1729601073135,3.2078,2623.5,2622.8,0.9537]
[1729601073136,2.98,2623.2,2622.8,3.2078]
[1729601073329,0.38144,2623.1,2622.6,0.95374]
[1729601073634,0.38144,2623.1,2622.9,0.38145]
[1729601074135,6.1878,2623.2,2622.9,0.38145]
[1729601074336,0.38145,2623.0,2622.9,0.38145]
[1729601074528,6.1878,2623.2,2623.0,0.38144]
[1729601074727,0.38143,2623.1,2622.6,0.95376]
[1729601074933,6.1878,2623.2,2622.6,0.95376]
[1729601075335,0.38144,2623.1,2623.0,0.38144]
[1729601075639,6.1878,2623.2,2622.4,7.14163]
[1729601075831,0.38145,2623.0,2622.9,0.38145]
[1729601076034,0.38144,2623.1,2623.0,0.38144]
[1729601076231,0.38146,2623.0,2622.9,0.38146]
[1729601076427,0.38145,2623.1,2622.7,0.38149]
[1729601076633,0.38145,2623.0,2622.9,0.38145]
[1729601076833,2.98,2623.0,2622.4,4.16163]
[1729601077039,0.38149,2622.8,2622.7,0.38149]
[1729601077443,0.3815,2622.7,2622.6,0.3815]
[1729601077938,3.2078,2622.9,2622.1,0.95393]
[1729601078239,0.38148,2622.8,2622.7,0.38148]
[1729601078639,0.38149,2622.8,2622.7,0.38149]
[1729601079239,0.38149,2622.8,2622.6,0.3815]
[1729601079636,0.38149,2622.8,2622.3,0.95387]
[1729601079836,0.38149,2622.8,2622.7,0.38149]
[1729601080034,0.38149,2622.8,2622.3,0.95387]
[1729601080239,0.3815,2622.7,2622.2,2.98]
[1729601080539,0.3815,2622.7,2622.6,0.38151]
[1729601080741,0.38148,2622.8,2622.7,0.38148]
[1729601081342,3.58927,2622.9,2622.8,0.38148]
[1729601081841,0.7765403,2623.1,2623.0,0.38145]
[1729601082540,0.3951003,2623.1,2622.5,0.95379]
[1729601082737,0.38146,2623.0,2622.9,0.38146]
[1729601083948,2.98,2623.2,2622.4,2.98]
[1729601084147,0.38148,2622.9,2622.4,3.93383]
[1729601084448,0.38148,2622.8,2622.7,0.38148]
[1729601084940,4.34157593,2623.2,2622.4,3.93383]
[1729601085149,0.38148,2622.8,2622.7,0.38148]
[1729601086345,0.38147,2622.9,2622.8,0.38147]
[1729601086544,6.1878,2623.0,2622.4,0.95383]
[1729601086745,0.38149,2622.8,2622.7,0.38148]